bitfinex-derivatives/quotes_ETHF0:USTF0_20250327
["timestamp","ask_amount","ask_price","bid_price","bid_amount"]
[1743087636571,0.98743,2026.0,2025.9,0.00740229]
[1743087636778,0.98758,2025.8,2025.3,9.34313]
[1743087637081,2.7128,2025.7,2025.6,0.98763]
[1743087637280,5.84212,2025.7,2025.6,0.98763]
[1743087637487,13.04294084,2025.7,2025.6,0.98763]
[1743087637780,8.93804084,2025.7,2025.6,0.98763]
[1743087638475,11.65084084,2025.7,2025.5,0.98766]
[1743087638674,4.9016,2025.6,2025.4,0.99510229]
[1743087638879,2.7128,2025.5,2025.4,0.99510229]
[1743087639079,5.81732,2025.5,2025.4,0.99510229]
[1743087639274,0.8094,2025.6,2025.5,0.98768]
[1743087639476,4.45002,2025.5,2025.4,0.99509229]
[1743087639778,5.81732,2025.5,2025.4,0.99509229]
[1743087639977,13.01814084,2025.5,2025.4,0.99509229]
[1743087640678,11.65084084,2025.5,2025.4,0.99509229]
[1743087641082,3.16599,2025.7,2025.6,0.98763]
[1743087641284,9.37922084,2025.7,2025.6,0.98763]
[1743087641580,13.82924084,2025.7,2025.4,2.47669229]
[1743087641777,4.45002,2025.6,2025.5,0.98765]
[1743087641976,3.11622,2025.6,2025.5,0.98765]
[1743087642179,11.65084084,2025.6,2025.5,0.98765]
[1743087642477,8.93804084,2025.6,2025.5,0.98765]
[1743087642677,10.31704084,2025.6,2025.5,0.98765]
[1743087642975,8.93804084,2025.6,2025.5,0.98765]
[1743087643278,1.73722,2025.6,2025.5,0.98765]
[1743087643981,1.73722,2025.6,2025.5,1.48116133]
[1743087644370,0.8149,2025.9,2025.8,0.98753]
[1743087644583,0.00740229,2026.2,2026.1,0.98738]
[1743087644783,8.19556313,2026.2,2026.1,0.98738]
[1743087645083,11.65824313,2026.2,2026.1,0.98738]
[1743087645474,13.04204313,2026.2,2026.1,0.98738]
[1743087645985,13.04204313,2026.2,2026.0,0.98739]
[1743087646181,2.7128,2026.0,2025.8,4.19533]
[1743087646484,2.7128,2026.0,2025.9,0.98748]
[1743087646690,1.39120229,2026.2,2026.1,0.98738]
[1743087646983,8.59202313,2026.2,2026.1,0.98738]
[1743087647178,13.04204313,2026.2,2026.1,0.98738]
[1743087647775,11.65824313,2026.2,2026.1,4.19518]
[1743087647984,1.74462229,2026.2,2026.1,4.19518]
[1743087649584,8.94544313,2026.2,2026.1,4.19518]
[1743087651280,1.74462229,2026.2,2026.1,5.56718]
[1743087653777,3.10792229,2026.2,2026.1,5.56718]
[1743087654393,10.30874313,2026.2,2026.1,5.56718]
[1743087654786,13.02154313,2026.2,2026.1,5.56718]
[1743087655588,13.02154313,2026.2,2025.8,3.602]
[1743087655784,13.02154313,2026.2,2026.0,0.98741]
[1743087655785,2.7246,2026.1,2026.0,0.98741]
[1743087655980,2.7128,2025.9,2025.7,3.2078]
[1743087656191,6.97943,2025.8,2025.7,0.98757]
[1743087656487,5.9919,2025.8,2025.7,0.98757]
[1743087656691,14.92994084,2025.8,2025.7,0.98757]
[1743087657283,14.92994084,2025.8,2025.7,2.32607]
[1743087657685,11.65084084,2025.8,2025.7,2.32607]
[1743087658087,0.98758,2025.7,2025.6,3.2078]
[1743087658289,5.76742,2025.7,2025.5,0.98763]
[1743087658594,5.76742,2025.7,2025.4,2.33362229]
[1743087658595,2.7128,2025.5,2025.4,2.33362229]
[1743087658990,13.04154084,2025.5,2025.4,2.33362229]
[1743087661288,4.19527,2025.9,2025.8,0.98752]
[1743087661488,10.40862084,2025.9,2025.8,0.98752]
[1743087661689,15.84611084,2025.9,2025.8,0.98752]
[1743087661889,14.85864084,2025.9,2025.8,0.98752]
[1743087662094,0.98752,2025.8,2025.7,2.28934]
[1743087662296,0.98757,2025.7,2025.6,3.2078]
[1743087662505,6.60489,2025.7,2025.6,3.2078]
[1743087662692,14.11504084,2025.7,2025.6,4.19542]
[1743087662891,4.20142,2025.7,2025.6,4.19542]
[1743087664197,1.73722,2025.7,2025.6,4.19542]
[1743087664392,1.73722,2025.7,2025.6,4.68877715]
[1743087664900,1.73722,2025.7,2025.6,4.19542]
[1743087665395,8.93804084,2025.7,2025.6,4.19542]
[1743087665991,11.65084084,2025.7,2025.6,4.19542]
[1743087666198,12.99624084,2025.7,2025.6,4.19542]
[1743087668487,11.65084084,2025.7,2025.6,4.19542]
[1743087668794,11.65084084,2025.7,2025.6,4.68896523]
[1743087670300,11.65084084,2025.7,2025.5,1.3536]
[1743087670301,14.06982084,2025.7,2025.5,1.3536]
[1743087670500,7.81505,2025.6,2025.5,2.34128]
[1743087670696,8.25882,2025.6,2025.5,2.34128]
[1743087670898,11.65084084,2025.6,2025.5,2.83525511]
[1743087671697,0.98768,2025.5,2025.4,0.00740229]
[1743087671900,0.98777,2025.3,2025.2,1.3872]
[1743087672203,1.73722,2025.4,2025.3,0.98777]
[1743087672503,1.73722,2025.4,2025.3,4.68963256]
[1743087672699,1.1702,2025.8,2025.7,0.98758]
[1743087673000,5.30122,2025.8,2025.7,0.98758]
[1743087673192,15.21484084,2025.8,2025.7,0.98758]
[1743087673396,8.93804084,2025.8,2025.7,1.48155213]
[1743087673790,8.93804084,2025.8,2025.7,2.86873247]
[1743087674690,12.63837084,2025.8,2025.7,2.86873247]
[1743087674895,11.65084084,2025.8,2025.7,2.86873247]
[1743087675103,8.93804084,2025.8,2025.7,2.86873247]
[1743087675400,12.98014084,2025.8,2025.7,2.86873247]
[1743087675597,1.73722,2025.8,2025.7,2.86873247]
[1743087675798,1.73722,2025.8,2025.7,2.8691798]
[1743087676403,8.93804084,2025.8,2025.7,2.86909392]
[1743087676804,12.63837084,2025.8,2025.7,2.86909392]
[1743087677305,11.65084084,2025.8,2025.7,2.86909392]
[1743087677603,1.3293,2026.0,2025.9,0.98748]
[1743087677808,11.24292084,2026.0,2025.9,4.68959392]
[1743087677998,12.98014084,2026.0,2025.9,4.68959392]
[1743087678198,13.96757084,2026.0,2025.9,5.57428]
[1743087678405,13.96757084,2026.0,2025.9,3.2078]
[1743087678702,0.98763,2025.7,2025.5,3.21520229]
[1743087678908,0.98763,2025.7,2025.6,1.48191001]
[1743087679093,8.18845084,2025.7,2025.6,0.98755]
[1743087679304,12.63847084,2025.7,2025.6,0.98755]
[1743087679497,0.98763,2025.6,2025.5,4.20283229]
[1743087679795,0.98777,2025.3,2025.2,4.19558]
[1743087680003,0.98791,2025.1,2025.0,0.9879]
[1743087680197,3.70071,2025.1,2025.0,1.48268735]
[1743087680396,12.72594084,2025.1,2025.0,1.48244233]
[1743087680606,12.72594084,2025.1,2025.0,2.82194233]
[1743087680912,8.93804084,2025.1,2025.0,2.82194233]
[1743087681113,11.65084084,2025.1,2025.0,2.82194233]
[1743087681601,8.93804084,2025.1,2025.0,2.82194233]
[1743087681803,1.1179,2025.5,2025.4,0.98772]
[1743087682112,8.31872084,2025.5,2025.4,0.98772]
[1743087682413,12.76874084,2025.5,2025.4,0.98772]
[1743087682711,13.75641084,2025.5,2025.4,0.98772]
[1743087683104,12.76874084,2025.5,2025.4,0.98772]
[1743087683298,1.73722,2025.5,2025.4,0.98772]
[1743087683504,1.73722,2025.5,2025.4,1.48202115]
[1743087683810,2.47584229,2026.2,2026.0,0.98743]
[1743087683811,0.98743,2026.1,2026.0,0.98743]
[1743087684012,2.92242,2026.1,2026.0,0.98743]
[1743087684312,13.82342084,2026.1,2026.0,0.98743]
[1743087684615,11.65084084,2026.1,2026.0,0.98743]
[1743087685200,11.65084084,2026.1,2026.0,4.68924168]
[1743087685201,1.73722,2026.1,2026.0,4.68924168]
[1743087685410,0.00740229,2026.2,2026.1,0.98738]
[1743087685608,8.94544313,2026.2,2026.1,2.80109168]
[1743087686610,8.94544313,2026.2,2026.1,2.30708]
[1743087687003,8.94544313,2026.2,2026.1,2.80109696]
[1743087687612,11.65824313,2026.2,2026.1,1.48139696]
[1743087687814,12.64557313,2026.2,2026.1,0.98738]
[1743087688301,11.65824313,2026.2,2026.1,2.32918]
[1743087688502,12.64557313,2026.2,2026.1,2.32918]
[1743087688815,11.65824313,2026.2,2026.1,2.32918]
[1743087689214,11.65824313,2026.2,2026.1,2.82288196]
[1743087689412,11.65824313,2026.2,2026.1,2.82289262]
[1743087689616,8.94544313,2026.2,2026.1,2.82289262]
[1743087689815,1.74462229,2026.2,2026.1,2.82289262]
[1743087690114,1.1852,2026.5,2026.4,0.98723]
[1743087690309,8.38602084,2026.5,2026.4,4.19503]
[1743087690513,12.83604084,2026.5,2026.4,4.19503]
[1743087691912,14.26514084,2026.5,2026.4,4.19503]
[1743087694327,0.98699,2027.0,2026.9,0.98696]
[1743087694522,9.53751084,2027.0,2026.9,0.98698]
[1743087694727,0.98701,2026.9,2026.8,0.987]
[1743087694923,2.33671,2026.9,2026.8,0.987]
[1743087695230,12.25033084,2026.9,2026.8,0.987]
[1743087695630,11.26332084,2026.9,2026.4,5.6758]
[1743087695929,11.26332084,2026.9,2026.4,5.57429]
[1743087695930,2.7128,2026.5,2026.4,5.57429]
[1743087696135,3.69998,2026.5,2026.4,3.2078]
[1743087696333,14.61490084,2026.5,2026.4,3.2078]
[1743087696634,14.61490084,2026.5,2026.4,4.19503]
[1743087697037,13.62772084,2026.5,2026.4,4.19503]
[1743087699031,14.61490084,2026.5,2026.4,4.19503]
[1743087699342,14.61490084,2026.5,2026.4,0.98722]
[1743087699629,14.61490084,2026.5,2025.9,1.1582]
[1743087699630,0.98732,2026.2,2025.8,2.47608229]
[1743087699834,2.7128,2026.0,2025.9,0.98747]
[1743087700023,2.7128,2026.0,2025.8,2.47613229]
[1743087700024,2.5055,2026.1,2026.0,0.98742]
[1743087700221,2.85137084,2026.1,2026.0,0.98742]
[1743087700422,5.56417084,2026.1,2026.0,0.98742]
[1743087700831,6.55154084,2026.1,2026.0,0.98742]
[1743087701029,6.55154084,2026.1,2025.8,0.00740229]
[1743087701229,2.7128,2025.9,2025.8,0.99492229]
[1743087701637,4.40147084,2025.9,2025.8,0.99492229]
[1743087702234,1.17010229,2026.1,2025.8,0.00740229]
[1743087702438,2.85877313,2026.1,2026.0,0.98743]
[1743087702638,2.7128,2026.0,2025.9,0.98744]
[1743087702939,3.70029,2025.9,2025.8,0.99494229]
[1743087703437,5.38896084,2025.9,2025.8,0.99494229]
[1743087704139,4.40147084,2025.9,2025.8,0.99494229]
[1743087706729,5.38896084,2025.9,2025.8,0.99494229]
[1743087708047,5.38896084,2025.9,2025.8,0.00740229]
[1743087708344,8.59676084,2025.9,2025.8,0.00740229]
[1743087709844,7.60927084,2025.9,2025.8,0.99494229]
[1743087710141,4.40147084,2025.9,2025.8,0.99494229]
[1743087711235,5.76507084,2025.9,2025.8,0.99494229]
[1743087712551,9.96036084,2025.9,2025.8,0.00740229]
[1743087713247,9.96036084,2025.9,2025.4,3.65922]
[1743087713248,2.7128,2025.7,2025.3,0.98774]
[1743087713445,2.7128,2025.4,2025.3,0.98774]
[1743087713638,2.7128,2025.4,2024.8,6.86477]
[1743087713848,0.9879,2025.1,2024.9,2.30615]
[1743087714052,5.05423,2025.0,2024.8,3.2078]
[1743087714350,2.4779,2025.0,2024.9,0.98797]
[1743087714550,5.1907,2025.0,2024.9,0.98797]
[1743087714752,5.1907,2025.0,2024.8,0.00740229]
[1743087714753,0.98797,2024.9,2024.8,0.00740229]
[1743087715048,8.26207,2024.9,2024.8,0.00740229]
[1743087715740,8.26207,2024.9,2024.3,5.67838]
[1743087715741,2.7128,2024.7,2024.0,5.67883]
[1743087715941,2.7128,2024.4,2024.3,2.30647]
[1743087716450,1.3535,2024.4,2024.3,2.30647]
[1743087716953,4.0663,2024.4,2024.3,2.30647]
[1743087719347,5.05452,2024.4,2024.3,2.30647]
[1743087719547,4.0663,2024.4,2024.3,2.30647]
[1743087721547,4.0663,2024.4,2024.1,0.99574229]
[1743087721753,2.7128,2024.2,2024.1,2.32554229]
[1743087722148,1.3535,2024.4,2024.3,0.98827]
[1743087722548,4.0663,2024.4,2024.3,0.98827]
[1743087722748,1.1244,2024.6,2024.5,0.98817]
[1743087722948,1.3327,2024.6,2024.5,0.98817]
[1743087723151,4.0455,2024.6,2024.5,0.98817]
[1743087723755,3.2078,2024.8,2024.7,0.98807]
[1743087724054,4.5405,2024.8,2024.7,0.98807]
[1743087724259,7.2533,2024.8,2024.7,0.98807]
[1743087724555,7.2533,2024.8,2024.5,1.3666]
[1743087724757,4.5405,2024.8,2024.7,0.98807]
[1743087724964,3.2078,2024.8,2024.7,0.98807]
[1743087725263,5.9206,2024.8,2024.7,0.98807]
[1743087725653,7.022,2024.8,2024.7,0.98807]
[1743087725852,8.3302,2024.8,2024.7,0.98807]
[1743087726658,1.3082,2024.8,2024.7,0.98807]
[1743087726854,0.00740229,2025.1,2025.0,0.98792]
[1743087727355,2.72020229,2025.1,2025.0,0.98792]
[1743087727948,5.01627229,2025.1,2024.9,1.3821]
[1743087728155,2.7128,2024.8,2024.6,9.27206]
[1743087728462,2.7128,2024.8,2024.7,2.37017]
[1743087728656,4.19572,2025.0,2024.9,0.98797]
[1743087728848,4.5604,2025.0,2024.9,0.98797]
[1743087729053,7.2732,2025.0,2024.9,0.98797]
[1743087729561,8.26112,2025.0,2024.9,0.98797]
[1743087729859,7.2732,2025.0,2024.9,0.98797]
[1743087730656,8.26112,2025.0,2024.9,0.98797]
[1743087730858,0.98802,2024.8,2024.7,2.37015]
[1743087731054,2.7128,2024.8,2024.7,2.37013]
[1743087731358,2.7128,2024.8,2024.7,0.98803]
[1743087731656,2.7128,2024.8,2024.6,1.4333]
[1743087731857,2.7128,2024.8,2024.4,0.98821]
[1743087731858,3.70092,2024.6,2024.4,0.98821]
[1743087732054,5.10877,2024.5,2024.4,0.98821]
[1743087732253,4.1206,2024.5,2024.4,0.98821]
[1743087732657,4.1206,2024.5,2024.2,1.3944]
[1743087732861,5.9206,2024.3,2024.2,0.98831]
[1743087733460,8.4434,2024.3,2024.2,0.98831]
[1743087733860,1.4078,2024.6,2024.5,0.98817]
[1743087734360,4.1206,2024.6,2024.5,0.98817]
[1743087735064,1.4078,2024.6,2024.5,0.98817]
[1743087735758,4.1206,2024.6,2024.5,0.98817]
[1743087735954,7.3284,2024.6,2024.4,1.3944]
[1743087736162,3.9066,2024.5,2024.4,2.38261]
[1743087736365,5.2972,2024.5,2024.4,2.38261]
[1743087737064,5.2972,2024.5,2024.4,0.98821]
[1743087738159,0.98821,2024.4,2024.3,0.98825]
[1743087738367,4.022,2024.4,2024.3,0.98825]
[1743087739357,4.022,2024.4,2024.2,1.3894]
[1743087739358,5.01021,2024.4,2024.2,2.37767]
[1743087739562,2.7128,2024.3,2024.2,2.37767]
[1743087739763,4.022,2024.3,2024.2,2.37767]
[1743087740771,5.01026,2024.3,2024.2,0.98827]
[1743087741067,4.022,2024.3,2024.2,0.98831]
[1743087741267,4.022,2024.3,2024.2,2.40221]
[1743087741464,5.01026,2024.3,2024.2,2.40221]
[1743087741664,4.022,2024.3,2024.2,2.40221]
[1743087741866,5.01026,2024.3,2024.2,2.40221]
[1743087742071,4.022,2024.3,2024.2,2.40221]
[1743087742565,5.01026,2024.3,2024.2,0.98831]
[1743087742870,2.7128,2024.2,2023.7,3.2078]
[1743087743070,2.7128,2023.6,2023.5,1.9767]
[1743087743276,2.7128,2023.6,2023.5,2.96535]
[1743087743569,4.9734,2023.8,2023.7,0.98855]
[1743087743775,6.3068,2023.8,2023.7,0.98855]
[1743087744973,2.7128,2023.8,2023.7,0.98855]
[1743087745459,6.80920229,2024.0,2023.9,0.98846]
[1743087745971,9.52200229,2024.0,2023.9,0.98846]
[1743087746963,10.51042229,2024.0,2023.6,2.4714]
[1743087747268,6.80920229,2024.0,2023.7,2.34853]
[1743087747475,2.7128,2023.7,2023.6,1.36]
[1743087747675,0.98851,2023.8,2023.7,0.98853]
[1743087747871,2.7128,2023.7,2023.5,0.00499386]
[1743087748178,3.7014,2023.6,2023.5,0.99364386]
[1743087748477,2.7128,2023.6,2023.5,0.99364386]
[1743087748670,4.3511,2023.7,2023.5,0.00499386]
[1743087748873,3.2078,2023.7,2023.6,2.3486]
[1743087749075,3.594,2023.9,2023.6,2.3486]
[1743087749076,4.58247,2023.9,2023.8,0.98851]
[1743087749276,4.58246,2023.9,2023.8,0.98851]
[1743087749470,7.29526,2023.9,2023.8,0.98851]
[1743087749670,6.3068,2023.9,2023.8,0.98851]
[1743087749872,2.7128,2023.9,2023.8,0.98851]
[1743087751280,2.7128,2023.9,2023.8,0.9885]
[1743087752481,0.00740229,2024.0,2023.9,0.98846]
[1743087752674,0.00740229,2024.0,2023.9,6.69846]
[1743087753175,0.00740229,2024.0,2023.9,7.19189835]
[1743087753582,0.00740229,2024.0,2023.9,3.98409835]
[1743087753783,0.00740229,2024.0,2023.9,3.49066]
[1743087753969,0.00740229,2024.0,2023.9,3.98412601]
[1743087754174,0.00740229,2024.0,2023.9,3.49066]
[1743087754380,0.00740229,2024.0,2023.9,7.19194739]
[1743087755979,0.00740229,2024.0,2023.9,4.68974739]
[1743087756185,3.70860229,2024.0,2023.9,0.98846]
[1743087756385,2.72020229,2024.0,2023.9,0.98846]
[1743087756582,3.70860229,2024.0,2023.9,0.98846]
[1743087756885,2.72020229,2024.0,2023.9,0.98846]
[1743087757775,0.00740229,2024.0,2023.9,0.98846]
[1743087757975,0.98849,2023.9,2023.8,0.98846]
[1743087758181,2.7128,2023.9,2023.8,0.98846]
[1743087758381,3.70125,2023.9,2023.8,0.98846]
[1743087758889,2.7128,2023.9,2023.8,0.98846]
[1743087760390,0.00740229,2024.0,2023.9,0.98845]
[1743087761186,3.70861229,2024.0,2023.9,0.98845]
[1743087761578,5.92800229,2024.0,2023.9,0.98845]
[1743087761983,2.72020229,2024.0,2023.9,0.98845]
[1743087762183,4.09660229,2024.0,2023.9,0.98845]
[1743087764490,4.09660229,2024.0,2023.8,0.98848]
[1743087764691,4.09660229,2024.0,2023.7,3.88346]
[1743087764692,2.7128,2023.8,2023.7,2.40076]
[1743087765091,4.0234,2023.8,2023.7,2.40076]
[1743087765792,8.21971,2023.8,2023.7,2.40076]
[1743087765988,7.2312,2023.8,2023.7,2.40076]
[1743087766688,8.21971,2023.8,2023.7,2.40076]
[1743087766888,7.2312,2023.8,2023.7,2.40076]
[1743087767288,7.2312,2023.8,2023.5,6.79048386]
[1743087767496,3.8958,2023.7,2023.6,0.98861]
[1743087767794,5.1942,2023.7,2023.6,0.98861]
[1743087768096,5.1942,2023.7,2023.6,2.39331]
[1743087769198,5.1942,2023.7,2023.6,0.98861]
[1743087769501,7.30956,2023.7,2023.6,0.98861]
[1743087770085,6.321,2023.7,2023.6,0.98861]
[1743087770291,7.30956,2023.7,2023.6,0.98861]
[1743087770698,0.98861,2023.6,2023.5,0.00499386]
[1743087770900,5.13371,2023.6,2023.5,0.99365386]
[1743087771491,4.1451,2023.6,2023.5,0.99365386]
[1743087772403,5.13371,2023.6,2023.5,0.99365386]
[1743087772700,0.98795,2025.0,2024.9,0.98795]
[1743087772891,0.98793,2025.0,2024.9,3.7028644]
[1743087773097,40.8,2025.0,2024.9,0.4950644]
[1743087773297,40.8,2025.0,2024.9,0.98797]
[1743087773499,40.8,2025.0,2024.9,1.62869049]
[1743087773796,44.20473,2025.0,2024.9,0.64072049]
[1743087773997,44.20473,2025.0,2024.9,1.62869049]
[1743087774193,0.98802,2024.8,2024.7,0.00740229]
[1743087774393,4.19582,2024.9,2024.7,0.00740229]
[1743087774591,1.4008,2024.8,2024.7,0.99543229]
[1743087774795,2.38882,2024.8,2024.7,0.00740229]
[1743087775103,2.38882,2024.8,2024.7,0.99547229]
[1743087777599,3.87098,2024.8,2024.2,5.67853]
[1743087777899,4.3755,2024.7,2024.5,0.98814]
[1743087778099,5.3636,2024.7,2024.6,0.98812]
[1743087778302,4.3755,2024.7,2024.6,0.98812]
[1743087778606,5.36357,2024.7,2024.6,0.98812]
[1743087779799,4.3755,2024.7,2024.6,0.98812]
[1743087780200,5.36357,2024.7,2024.6,0.98812]
[1743087780391,4.3755,2024.7,2024.6,0.98812]
[1743087780800,1.1677,2024.7,2024.6,4.69094261]
[1743087781199,3.658,2024.9,2024.8,0.98802]
[1743087781401,43.0595,2025.0,2024.9,0.98797]
[1743087781704,44.04742,2025.0,2024.9,0.98797]
[1743087782502,43.0595,2025.0,2024.9,0.98797]
[1743087782902,44.04742,2025.0,2024.9,0.98797]
[1743087783104,0.98798,2024.9,2024.8,0.98799]
[1743087783304,44.04746,2025.0,2024.9,0.98797]
[1743087783908,0.98798,2024.9,2024.8,0.98798]
[1743087784108,44.04746,2025.0,2024.9,0.98797]
[1743087784305,2.46994,2024.9,2024.6,3.2078]
[1743087784611,0.98807,2024.7,2024.6,4.19592]
[1743087784800,3.2078,2024.7,2024.4,1.34839386]
[1743087785001,2.10282,2024.6,2024.5,0.98813]
[1743087785305,1.1147,2024.6,2024.5,0.98813]
[1743087785509,2.10282,2024.6,2024.5,0.98813]
[1743087786507,1.1147,2024.6,2024.5,0.98813]
[1743087786710,2.10282,2024.6,2024.5,0.98813]
[1743087787206,1.1147,2024.6,2024.5,0.98813]
[1743087787605,2.10282,2024.6,2024.5,0.98813]
[1743087788011,1.1147,2024.6,2024.5,0.98813]
[1743087788201,0.98817,2024.5,2024.4,0.99318386]
[1743087788506,1.1147,2024.6,2024.5,0.98817]
[1743087788709,2.10282,2024.6,2024.5,0.98817]
[1743087789300,2.10282,2024.6,2024.4,0.00499386]
[1743087789301,0.98817,2024.5,2024.4,0.99318386]
[1743087789610,0.98817,2024.5,2024.4,0.99321386]
[1743087789797,2.17837,2024.5,2024.4,0.00499386]
[1743087790208,2.17837,2024.5,2024.4,2.30971386]
[1743087790709,1.1902,2024.5,2024.4,2.30971386]
[1743087790904,1.1147,2024.6,2024.5,0.98817]
[1743087791104,1.1147,2024.6,2024.5,2.30467]
[1743087791306,2.5155,2024.6,2024.5,2.30467]
[1743087791506,0.00740229,2025.2,2024.9,0.98797]
[1743087791701,0.00740229,2025.2,2025.1,0.98788]
[1743087791905,4.19543,2025.7,2025.0,1.3165]
[1743087792101,2.38844,2025.6,2025.4,0.98769]
[1743087792302,2.38844,2025.6,2025.2,4.93903]
[1743087792303,3.86989,2025.6,2025.1,4.3616]
[1743087792608,0.98774,2025.4,2025.3,0.98776]
[1743087794202,0.98777,2025.4,2025.2,2.38799]
[1743087794404,0.98791,2025.1,2024.7,1.4002]
[1743087794605,1.3991,2025.0,2024.7,1.4002]
[1743087795007,1.3991,2025.0,2024.9,0.98797]
[1743087795206,2.38703,2025.0,2024.9,0.98797]
[1743087795408,2.38702,2025.0,2024.9,0.98797]
[1743087795607,1.3991,2025.0,2024.9,0.98797]
[1743087795812,6.57748,2025.3,2025.2,0.98783]
[1743087796116,0.98783,2025.2,2025.1,0.98784]
[1743087796707,7.01171,2025.3,2025.1,0.98787]
[1743087796914,6.0239,2025.3,2025.0,5.05588]
[1743087797114,5.68433229,2025.6,2025.2,2.46956]
[1743087797115,4.20287229,2025.6,2025.2,2.46956]
[1743087797303,2.32588,2025.5,2025.4,0.98772]
[1743087797509,1.3382,2025.5,2025.4,0.98772]
[1743087799308,4.38270229,2025.6,2025.3,1.4321]
[1743087799309,3.21520229,2025.6,2025.5,0.98767]
[1743087800112,4.57100229,2025.6,2025.5,0.98767]
[1743087800911,3.21520229,2025.6,2025.5,0.98767]
[1743087801814,0.00740229,2025.6,2025.5,0.98767]
[1743087802016,0.00740229,2025.6,2025.5,3.47047]
[1743087803513,0.9873,2026.1,2026.0,0.98731]
[1743087803819,2.41719,2026.1,2026.0,0.98731]
[1743087804410,2.41719,2026.1,2025.9,2.33064]
[1743087804616,2.41719,2026.1,2026.0,0.98734]
[1743087804912,2.41719,2026.1,2026.0,2.31764]
[1743087805720,1.4299,2026.1,2026.0,2.31764]
[1743087805917,2.41719,2026.1,2026.0,2.31764]
[1743087806821,2.41719,2026.1,2026.0,1.3303]
[1743087807419,0.98739,2025.9,2025.8,0.00740229]
[1743087808123,0.98739,2025.9,2025.8,2.29374229]
[1743087808324,0.98736,2026.0,2025.9,0.98737]
[1743087808528,0.98739,2025.9,2025.8,2.29370229]
[1743087809021,0.98739,2025.9,2025.8,2.29372229]
[1743087809623,2.15269,2025.9,2025.8,1.30630229]
[1743087810118,2.15269,2025.9,2025.8,0.00740229]
[1743087810319,3.32189,2025.9,2025.8,0.00740229]
[1743087810518,3.32189,2025.9,2025.8,0.99484229]
[1743087810823,1.381,2026.0,2025.9,0.98739]
[1743087812621,1.1313,2026.1,2026.0,0.98734]
[1743087812822,3.53379,2026.1,2026.0,0.98734]
[1743087813023,4.377,2026.2,2025.8,3.77589229]
[1743087813024,3.2078,2026.2,2025.8,3.77589229]
[1743087813218,0.00740229,2026.3,2026.2,0.98724]
[1743087813425,1.42260229,2026.3,2026.2,0.98724]
[1743087814025,1.42260229,2026.3,2026.2,2.29464]
[1743087815227,1.42260229,2026.3,2026.2,1.3074]
[1743087815429,0.98729,2026.1,2026.0,3.2078]
[1743087815631,0.98729,2026.1,2026.0,4.19514]
[1743087817422,4.63040229,2026.3,2026.0,3.2078]
[1743087817627,3.21520229,2026.3,2026.2,0.98724]
[1743087818136,0.00740229,2026.3,2026.2,0.98724]
[1743087818827,0.00740229,2026.3,2026.2,2.30274]
[1743087820131,0.00740229,2026.3,2026.2,2.79541859]
[1743087820429,0.00740229,2026.3,2026.2,2.79539926]
[1743087820822,0.00740229,2026.3,2026.2,3.46071518]
[1743087821125,1.3958,2026.6,2026.5,0.9871]
[1743087821726,2.38285,2026.6,2026.5,0.9871]
[1743087821932,1.3958,2026.6,2026.5,0.9871]
[1743087822528,2.38285,2026.6,2026.5,0.9871]
[1743087823138,2.38289,2026.6,2026.5,0.9871]
[1743087823328,1.3958,2026.6,2026.4,1.3415]
[1743087823530,0.9871,2026.5,2026.4,2.32862]
[1743087824130,2.08173,2026.7,2026.6,0.98705]
[1743087825239,1.0947,2026.7,2026.6,0.98705]
[1743087825541,3.3795,2026.7,2026.6,2.36025]
[1743087826142,3.3795,2026.7,2026.6,1.3732]
[1743087826332,3.37954,2026.7,2026.6,0.98705]
[1743087826644,2.3925,2026.7,2026.6,0.98705]
[1743087827928,0.98679,2027.2,2027.0,0.98685]
[1743087828137,1.195,2027.2,2027.1,0.9868]
[1743087828333,5.67375,2028.0,2027.5,0.98659]
[1743087828534,2.18156,2027.6,2027.4,0.98665]
[1743087828739,0.98663,2027.5,2027.3,0.98668]
[1743087828935,0.98663,2027.5,2027.1,1.76640611]
[1743087829139,1.20240229,2027.6,2027.2,0.00740229]
[1743087829438,0.98671,2027.3,2027.2,0.00740229]
[1743087830031,2.32271,2027.3,2027.2,0.00740229]
[1743087831943,0.9869,2026.9,2026.8,2.08805]
[1743087832146,0.98683,2027.1,2026.9,0.9869]
[1743087832445,1.3121,2027.1,2027.0,3.2078]
[1743087832641,2.2989,2027.1,2027.0,3.2078]
[1743087834138,0.9869,2026.9,2026.8,1.10850229]
[1743087835442,0.9869,2026.9,2026.8,0.00740229]
[1743087836544,1.3121,2027.0,2026.8,0.00740229]
[1743087836745,1.3121,2027.0,2026.9,0.9869]
[1743087837845,2.29895,2027.0,2026.9,0.9869]
[1743087838048,1.3121,2027.0,2026.9,0.9869]
[1743087838246,1.3121,2027.0,2026.9,4.1947]
[1743087839143,1.3121,2027.0,2026.9,4.68720191]
[1743087839548,2.12939,2027.2,2027.0,0.98682]
[1743087839849,1.3801,2027.1,2026.9,3.87293185]
[1743087840051,1.3801,2027.1,2027.0,0.98685]
[1743087840246,1.3801,2027.1,2027.0,2.18785]
[1743087841148,1.1426,2027.2,2027.1,0.9868]
[1743087841345,2.5104,2027.2,2027.1,0.9868]
[1743087841649,3.49716,2027.2,2027.1,1.404]
[1743087841838,3.49716,2027.2,2027.1,2.3908]
[1743087842042,3.49716,2027.2,2027.1,1.404]
[1743087842343,0.98685,2027.0,2026.8,0.99433229]
[1743087842652,0.98688,2027.0,2026.8,2.39833229]
[1743087842852,1.3678,2026.9,2026.8,2.39833229]
[1743087843043,2.3547,2026.9,2026.8,1.41140229]
[1743087843245,2.5763,2026.9,2026.8,2.89135568]
[1743087843449,1.1426,2027.2,2027.1,0.9868]
[1743087843642,1.1426,2027.2,2027.0,4.19461]
[1743087843946,0.9868,2027.1,2027.0,4.19465]
[1743087844153,2.12937,2027.2,2027.0,3.2078]
[1743087844351,2.12937,2027.2,2027.0,4.19462]